Cogmind - Beta 9.1 *** ADVENTURER MODE // 2019.11.01 @ 14:58:49 // Halloween2019/Abominations Player: Zntyl Result: Core destroyed Performance ------------- Evolutions (1) 500 Regions Visited (2) 400 Robots Destroyed (9) 45 Value Destroyed (550) 550 Prototype IDs (1) 20 Alien Tech Used (0) 0 Bonus (0) 0 TOTAL SCORE: 1515 Bonus ------- None Cogmind --------- Core Integrity 0/400 Matter 215/300 Energy 100/100 System Corruption 2% Temperature Cool (611) Location -9/Materials Parts ------- Power (1) Propulsion (2) Utility (4) Weapon (2) Inventory (4) Small Storage Unit Heavy Assault Rifle Heavy Assault Rifle Peak State ------------ Power Heavy Ion Engine Propulsion Aluminum Leg Aluminum Leg Utility Small Storage Unit Weapon Light Assault Rifle Light Cannon Inventory Light Ion Engine [Rating: 8] Favorites ----------- Power Light Ion Engine Engine Light Ion Engine Propulsion Aluminum Leg Leg Aluminum Leg Utility Small Storage Unit Storage Small Storage Unit Weapon Light Assault Rifle Ballistic Gun Light Assault Rifle Ballistic Cannon Light Cannon Build | -11 -10 -9 ------- Run | Scr Mat Mat Slots Evolved 2 | . . 2 Power . | . . . Propulsion . | . . . Utility 2 | . . 2 Weapon . | . . . Parts Attached 10 | 6 . 4 Power 3 | 1 . 2 Engine 3 | 1 . 2 Core . | . . . Reactor . | . . . Propulsion 2 | 2 . . Treads . | . . . Leg 2 | 2 . . Wheel . | . . . Hover . | . . . Flight . | . . . Utility 1 | 1 . . Device . | . . . Storage 1 | 1 . . Processor . | . . . Hackware . | . . . Protection . | . . . Artifact . | . . . Weapon 4 | 2 . 2 Energy Gun . | . . . Energy Cannon . | . . . Ballistic Gun 3 | 2 . 1 Ballistic Cannon 1 | . . 1 Launcher . | . . . Special Weapon . | . . . Impact Weapon . | . . . Slashing Weapon . | . . . Piercing Weapon . | . . . Special Melee Weapon . | . . . Unidentified Prototypes 1 | . . 1 Parts Lost 3 | . 1 2 Power 1 | . . 1 Propulsion . | . . . Utility . | . . . Weapon 2 | . 1 1 Highest Loss Streak 1 | . 1 1 Average Slot Usage (%) 70 | . 85 52 Engine 10 | . 14 5 Leg 23 | . 28 18 Storage 11 | . 14 9 Ballistic Gun 19 | . 28 9 Ballistic Cannon 4 | . . 9 Naked Turns 23 | . . 23 Heaviest Build 11 | 9 9 11 Greatest Support 20 | 20 20 20 Greatest Overweight (x) . | . . . Average Overweight (x) . | . . . Largest Inventory Capacity 6 | 6 6 6 Average Capacity 5 | 5 6 5 Most Carried 4 | 4 1 3 Average Carried . | . . 1 Final Capacity 6 | 6 6 4 Final Carried 3 | . 1 3 Class Distribution -------------------- 100% | Mutant Dominant Class ---------------- Mutant | -10/Materials Mutant | -9/Materials Resources | -11 -10 -9 ----------- Run | Scr Mat Mat Matter Collected 335 | 213 89 33 Remotely . | . . . Salvage Created 419 | . 343 76 Parts 15 | . 15 . Haulers Intercepted . | . . . Recyclers Shooed . | . . . Parts Field Recycled . | . . . Retrieved Matter . | . . . Parts Self-Destructed . | . . . Prevented . | . . . Kills | -11 -10 -9 ------- Run | Scr Mat Mat Combat Hostiles Destroyed 9 | . 7 2 Guns 7 | . 7 . Cannons 2 | . . 2 Classes Destroyed 1 | . 1 . Abomination 9 | . 7 2 Best Kill Streak 4 | . 4 2 Combat Bots Only 4 | . 4 2 Max Kills in Single Turn 1 | . 1 1 Gunslinging . | . . . Exploded . | . . . Melee . | . . . Uniques/NPCs Destroyed . | . . . Combat | -11 -10 -9 -------- Run | Scr Mat Mat Damage Taken 874 | . 192 682 Core 446 | . 14 432 Absorbed by Shields . | . . . Core Remaining (%) 97 | 100 94 . Volleys Fired 43 | . 29 14 Largest 2 | . 2 2 Hottest 58 | . 40 58 Shots Fired 85 | . 58 27 Gun 71 | . 58 13 Cannon 14 | . . 14 Launcher . | . . . Special . | . . . Kinetic 85 | . 58 27 Thermal . | . . . Explosive . | . . . Electromagnetic . | . . . Robot Hit Streak 21 | . 8 21 Robot Miss Streak 2 | . 2 2 Penetration Max . | . . . Secondary Targets . | . . . Shots Hit Robots 67 | . 44 23 Core Hits 32 | . 27 5 Critical Hits . | . . . Critical Kills . | . . . Critical Parts Destroyed . | . . . Melee Attacks . | . . . Impact . | . . . Slashing . | . . . Piercing . | . . . Sneak Attacks . | . . . Combat Hostiles . | . . . Follow-up Attacks . | . . . Damage Inflicted 698 | . 364 334 Guns 491 | . 364 127 Cannons 207 | . . 207 Explosions . | . . . Melee . | . . . Ramming . | . . . Kinetic 698 | . 364 334 Thermal . | . . . Explosive . | . . . Electromagnetic . | . . . Impact . | . . . Slashing . | . . . Piercing . | . . . Highest Corruption 2 | . . 2 Average Corruption 2 | . . 2 Corruption Purged . | . . . Effects 3 | . . 3 Energy Discharges 1 | . . 1 Targeting Errors 2 | . . 2 Overload Shots . | . . . Overflow Damage . | . . . Projectiles . | . . . Explosions . | . . . Melee . | . . . Knockbacks 1 | . . 1 Impact . | . . . Kinetic 1 | . . 1 Secondary . | . . . Self-Inflicted Damage . | . . . Shots . | . . . Rammed . | . . . Targets Rammed . | . . . Kicked . | . . . Crushed . | . . . Highest Temperature 1161 | . . 1161 Average Temperature 452 | . . 452 Received Heat Transfer 226 | . . 226 Effects 19 | . . 19 Energy Bleed 3 | . . 3 Interference 4 | . . 4 Matter Decay 4 | . . 4 Short Circuit 1 | . . 1 Damage (minor) 2 | . . 2 Damage (major) 1 | . . 1 Damage (core) 4 | . . 4 Siege Activations . | . . . Robots Corrupted . | . . . Combat Hostiles . | . . . Parts Fried . | . . . Impact Corruptions . | . . . Robots Melted . | . . . Combat Hostiles . | . . . Parts Melted . | . . . Heat Transferred . | . . . Parts Sabotaged . | . . . Parts Stolen . | . . . Parts Stripped . | . . . Power Chain Reactions . | . . . Missiles Intercepted . | . . . Alert | -11 -10 -9 ------- Run | Scr Mat Mat Peak Influence 24 | . . 24 Average Influence 4 | . . 11 Maximum Alert Level . | . . . Low Security (%) 100 | . . . Level 1 . | . . . Level 2 . | . . . Level 3 . | . . . Level 4 . | . . . Level 5 . | . . . High Security . | . . . Max Security . | . . . Squads Dispatched 6 | . . 6 Investigation 2 | . . 2 Extermination . | . . . Reinforcement 4 | . . 4 Assault . | . . . Garrison . | . . . Intercept . | . . . Construction Impeded . | . . . Haulers Reinforced . | . . . Stealth | -11 -10 -9 --------- Run | Scr Mat Mat Distress Signals 6 | . 1 5 Communications Jammed . | . . . Distress Signals . | . . . Times Spotted 24 | . 7 17 Peak Tracking Total 5 | . 3 5 Tactical Retreats 1 | . . 1 Traps | -11 -10 -9 ------- Run | Scr Mat Mat Traps Triggered . | . . . Indirectly . | . . . Trap Hack Attempts . | . . . Triggered . | . . . Disarmed . | . . . Reprogrammed . | . . . Reused . | . . . Traps Extracted . | . . . Installed . | . . . Triggered . | . . . Machines | -11 -10 -9 ---------- Run | Scr Mat Mat Machines Disabled 1 | . . 1 Max in Single Turn 1 | . . 1 Machines Sabotaged . | . . . Garrisons Compromised . | . . . Overloaded Fab Kills . | . . . Fab Network Shutdowns . | . . . Hacking | -11 -10 -9 --------- Run | Scr Mat Mat Machines Accessed 1 | . 1 . Terminals 1 | . 1 . Fabricators . | . . . Repair Stations . | . . . Recycling Units . | . . . Scanalyzers . | . . . Garrison Access . | . . . Total Hacks 1 | . 1 . Successful 1 | . 1 . Failed . | . . . Catastrophic . | . . . Database Lockouts . | . . . Manual . | . . . Terminals 1 | . 1 . Fabricators . | . . . Repair Stations . | . . . Recycling Units . | . . . Scanalyzers . | . . . Garrison Access . | . . . Terminal Hacks 1 | . 1 . Locate Traps 1 | . 1 . Fabricator Hacks . | . . . Repair Station Hacks . | . . . Recycling Unit Hacks . | . . . Scanalyzer . | . . . Garrison Access Hacks . | . . . Unauthorized Hacks . | . . . Terminals . | . . . Fabricators . | . . . Repair Stations . | . . . Recycling Units . | . . . Scanalyzers . | . . . Garrison Access . | . . . Data Cores Recovered . | . . . Used . | . . . Hacking Detections 1 | . 1 . Full Trace Events . | . . . Feedback Events . | . . . Feedback Blocked . | . . . Robot Schematics Acquired . | . . . Robots Built . | . . . Matter . | . . . Time . | . . . Total Robot Build Rating . | . . . Part Schematics Acquired . | . . . Parts Built . | . . . Matter . | . . . Time . | . . . Total Part Build Rating . | . . . Parts Repaired . | . . . Time . | . . . Parts Recycled . | . . . Recycled Matter . | . . . Retrieved Matter . | . . . Retrieved Components . | . . . Parts Scanalyzed . | . . . Part Schematics Acquired . | . . . Parts Damaged . | . . . Bothacking | -11 -10 -9 ------------ Run | Scr Mat Mat Used RIF Installer . | . . . Robots Hacked . | . . . Non-combat . | . . . Combat . | . . . Robot Hacks Applied . | . . . Relay Couplers Released . | . . . Robots Rewired . | . . . Allies Hacked . | . . . Hacks Repelled . | . . . Allies | -11 -10 -9 -------- Run | Scr Mat Mat Total Allies . | . . . Largest Group . | . . . Highest-Rated Group . | . . . Highest-Rated Ally . | . . . Total Orders . | . . . Ally Attacks . | . . . Total Damage . | . . . Kills . | . . . Allies Corrupted . | . . . Allies Melted . | . . . Intel | -11 -10 -9 ------- Run | Scr Mat Mat Robot Analysis Total . | . . . Derelict Logs Recovered . | . . . Drone Launches . | . . . Drone Recoveries . | . . . Exploration | -11 -10 -9 ------------- Run | Scr Mat Mat Turns Passed 499 | 48 257 194 Spaces Moved 323 | 40 138 145 Core 64 | 19 . 45 Treads . | . . . Legs 259 | 21 138 100 Wheels . | . . . Hover . | . . . Flight . | . . . Fastest Speed 50 | 50 120 50 Average Speed 106 | 86 120 98 Slowest Speed 120 | 120 120 120 Overloaded Moves . | . . . Propulsion Burnouts . | . . . Robots Hopped . | . . . Cave-ins Triggered . | . . . Exploration Rate (%) 22 | 3 37 27 Regions Visited 2 Branch Regions . Pre-discovered Areas . | . . . Known Exits Taken . | . . . Unknown Exits Taken 2 | 1 1 . Scrap Searched . | . . . Spaces Dug . | . . . Terrain Destroyed . | . . . Melee . | . . . Projectile . | . . . AOE . | . . . Actions | -11 -10 -9 --------- Run | Scr Mat Mat Total 410 | 53 183 174 Wait 19 | 2 16 1 Move 321 | 39 137 145 Hop . | . . . Pick Up 11 | 6 1 4 Fast Attach . | . . . Attach 9 | 6 . 3 Detach 1 | . . 1 Swap 1 | . . 1 Drop 5 | . . 5 Fire 43 | . 29 14 Melee . | . . . Ram . | . . . Kick . | . . . Crush . | . . . Escape Stasis . | . . . Rewire . | . . . Trap . | . . . Miscellaneous . | . . . Route ------- -11/Scrapyard -10/Materials -9/Materials History --------- Turn | Location | Event 16 | -11/Scrapyard | Discovered new exit (range 15) 49 | -11/Scrapyard | Entered Materials 298 | -10/Materials | Discovered new exit (range 7) 306 | -10/Materials | Entered another Materials area 306 | -9/Materials | Evolved 2 slots: Utility x2 327 | -9/Materials | Build established: Mutant 431 | -9/Materials | Discovered new exit (range 14) 476 | -9/Materials | Core integrity fell below 50% 493 | -9/Materials | Core integrity fell below 20% 501 | -9/Materials | Core destroyed Last Messages --------------- 00478_ Lgt. Cannon blinks away. 00479_ Forced to warp away. 00480_ Acquired 16 matter. 00481_ Overheating: Core damaged (-56). 00481_ U-05 Engineer heat short circuits Wheel. 00484_ U-05 Engineer heat damages Welding Torch. 00485_ Sml. Storage Unit blinks away. 00486_ U-05 Engineer heat damages core (-2). 00488_ Overheating: Energy bleed (-12). 00490_ Overheating: Energy bleed (-14). 00491_ Hungry Anomaly eats Spread Laser. 00491_ Lesser Abomination feeds off Hungry Anomaly, taking Med. Matter Pod, Seismic Analyzer, Adv. Signal Interpreter. 00491_ Lesser Abomination feeds off Hungry Anomaly, taking Aluminum Leg. 00492_ Hungry Anomaly eats Hvy. Assault Rifle. 00494_ Lesser Abomination spits out Lgt. Armor Plating. 00494_ Lesser Abomination feeds off Hungry Anomaly, taking Hrd. Light Armor Plating. 00496_ Lesser Abomination absorbs Lgt. Armor Plating. 00501_ Overheating: Core damaged (-68). Map ----- +----------------------------------------------------+ | ???????????????#! ??????????????????????????? | | ???????????????#! ################??????????? | | ???????????????#! #??????????? | | ???????????????#! #??????????? | | ????????????????# ! #??????????? | | ????????????????################# #??????????? | | ????????????????????????????????# #??????????? | | ????????????????????????????????# #??????????? | | ????????????????????????????????# #??????????? | | ????????????????????????????????# #??????????? | | ????????????????????????????????# #??????????? | | ????????????????????? ??????????# #######????? | | ????????????????????? ?????????# #????? | | ????????????????????? ???#####?# ###### | | ???????????????????###t##? #?# "T" | | ???????????????????# ? %#?# | | ???????????????????+ #?# | | ???????????????????? """% #?# "" % | | ?????????????????????# """ #?# "" % ###### | | ?????????????????????# %""" #?# """ #????? | | ?????????????????????# #?# ####?? | | ?????????????????+???# #?# | | ????????????????? ???# " #?# | | ???????????????## #### T ### % | | ???????????????# " % | | ???????????????# @n | | ???????????????+ A n """ """% | | ???????????????# ####+##+###### """"""""?? | | ??????????????## ####? ??????#" """"??? | | ??????????????# """# ????????#T ????? | | ??????????????# "#?????????#" ???? | | ??????????????# |"#?????????# ???? | | ??????????????# < ""#??????????% ???? | | ??????????????# !"#?????????? #????? | | ??????????????# "#?????????? ###########????? | | ??????????????# """#??????????????????????????? | | ????????###???## / ####??????????????????????????? | | ????????? ???# #?????????????????????????????? | | ??????????#%#### #?????????????????????????????? | | ??????????# #?????????????????????????????? | | ??????????# ##????????????????????????????? | | ?????????## #????????????????????????????? | | ?????????# #????????????????????????????? | | ??????"" /% #????????????????????????????? | | ??????"" # #????????????????????????????? | | ??????""?# % #????????????????????????????? | | ?????? ??########+#####??????????????????????????? | | ????????????## % #??????????????????????????? | | ????????????# """ #??????????????????????????? | | ????????????## """" #??????????????????????????? | +----------------------------------------------------+ Best States ------------- Heat Dissipation 28 Energy Generation 10 Energy Capacity 125 Matter Stores 300 Matter Capacity 300 Sight Range 16 Terrain Scan Density 10 Resistance: KI 20 Resistance: TH 20 Resistance: EX 20 Resistance: EM 20 Resistance: I 20 Resistance: S 20 Resistance: P 20 Evasion (%) 50 Item Schematics ----------------- None Robot Schematics ------------------ None Fabricated ------------ Nothing Alien Tech Used ----------------- None Achievements -------------- None Challenges ------------ None Game ------ Seed ExplosiveTrapBarrier Manual? 0 Play Time 00:07:05 Cumulative 80.0 hours Start 2019.11.01 @ 14:53:52 End 2019.11.01 @ 14:58:49 Sessions 1 Manual Loads 0 Difficulty Adventurer Special Mode Halloween2019/Abominations Game No. 141 Rogue 15 Adventurer 63 Explorer 0 Win Type - Total 0 Types 0/0/0/0/0/0/0 Lore% 43 Gallery% 62 Achievement% 50 Wizard Run 0 Options --------- ASCII 0 Keyboard 0 Movement Mouse Keybinds 0 Fullscreen 1 Font 18/SmallcapsGlow Map View 76x50 Tactical HUD 1 Map Filters NONE Filters NONE Steam 1 RUN: 28119a99-552f-407a-be05-17bbfe2c8040